Cogmind - Beta 13 @@@ ROGUE MODE // 2024.04.16 @ 21:11:27 Player: iwantthegold Result: Destroyed by H-66 Slayer with Gauss Rifle Performance ------------- Evolutions (4) 2000 Regions Visited (8) 1600 Robots Destroyed (77) 385 Value Destroyed (2776) 2776 Prototype IDs (6) 120 Alien Tech Used (0) 0 Bonus (-339) -339 TOTAL SCORE: 6542 Bonus ------- High Alert Combat Kills 92 Friendly Fire -431 Cogmind --------- Core Integrity 0/850 Matter 285/300 Energy 150/150 System Corruption 0% Temperature Cool (0) Movement Flying (165) Ox2 Location -6/Factory Parts ------- > --- POWER (2) -------- Micro Nuclear Core > --- PROPULSION (5) --- Cooled VTOL Module > --- UTILITY (6) ------ Enhanced Optical Array > --- WEAPON (2) ------- Remote Datajack Katana > --- INVENTORY (5) ---- Proton Cannon Cooled Particle Cannon Cooled Particle Cannon Great Maul Peak State ------------ > --- POWER ------------ Heavy Deuterium Engine Heavy Deuterium Engine > --- PROPULSION ------- Cooled VTOL Module Cooled VTOL Module Cooled VTOL Module Cooled VTOL Module Cooled VTOL Module > --- UTILITY ---------- Large Storage Unit Medium Battery Medium Battery Small Matter Pod Enhanced Optical Array > --- WEAPON ----------- Improved Spread Laser Katana > --- INVENTORY -------- Micro Nuclear Core Light Treads Cooled VTOL Module Cooled Particle Cannon Cooled Particle Cannon Remote Datajack Great Maul Chainsword [Rating: 55] Favorites ----------- Power Improved Ion Engine Engine Improved Ion Engine Power Core Micro Nuclear Core Propulsion Aluminum Leg Treads Light Treads Leg Aluminum Leg Wheel Wheel Hover Unit Aerolev Unit Flight Unit Cooled VTOL Module Utility Large Storage Unit Device Seismic Detector Storage Large Storage Unit Processor Improved Signal Interpreter Protection Improved Light Armor Plating Weapon Medium Laser Energy Gun Medium Laser Energy Cannon Cooled Particle Cannon Ballistic Gun Assault Rifle Launcher Grenade Launcher Special Weapon Remote Datajack Impact Weapon Great Maul Slashing Weapon Katana Build | -11 -10 -10 -10 -9 -8 -7 -7 -6 ------- Run | Yrd Mat Min Exi Min Mat Fac Sto Fac Slots Evolved 8 | . . . . . 4 2 . 2 Power 1 | . . . . . . 1 . . Propulsion 3 | . . . . . 2 . . 1 Utility 4 | . . . . . 2 1 . 1 Weapon . | . . . . . . . . . Parts Attached 110 | 7 1 . 1 6 18 26 42 9 Power 17 | 1 1 . . 3 1 5 5 1 Engine 12 | 1 1 . . 3 1 2 4 . Core 5 | . . . . . . 3 1 1 Reactor . | . . . . . . . . . Propulsion 50 | 2 . . . 2 7 12 24 3 Treads 7 | . . . . 2 1 3 . 1 Leg 21 | 2 . . . . 5 6 8 . Wheel 6 | . . . . . 1 2 3 . Hover 4 | . . . . . . . 4 . Flight 12 | . . . . . . 1 9 2 Utility 17 | 2 . . 1 1 3 2 7 1 Device 5 | 1 . . . . 1 1 2 . Storage 6 | 1 . . 1 1 . . 3 . Processor 3 | . . . . . . . 2 1 Hackware . | . . . . . . . . . Protection 3 | . . . . . 2 1 . . Artifact . | . . . . . . . . . Weapon 26 | 2 . . . . 7 7 6 4 Energy Gun 9 | 1 . . . . 3 3 2 . Energy Cannon 3 | . . . . . . . 2 1 Ballistic Gun 2 | 1 . . . . . 1 . . Ballistic Cannon . | . . . . . . . . . Launcher 5 | . . . . . 2 1 2 . Special Weapon 1 | . . . . . . . . 1 Impact Weapon 1 | . . . . . 1 . . . Slashing Weapon 5 | . . . . . 1 2 . 2 Piercing Weapon . | . . . . . . . . . Special Melee Weapon . | . . . . . . . . . Unidentified Prototypes 6 | . . . . . . 2 4 . Corrupted Parts 1 | . . . . . . 1 . . System Corruption 3 | . . . . . . 3 . . Parts Lost 51 | . . . . 3 5 12 17 14 Power 7 | . . . . . 1 1 3 2 Propulsion 24 | . . . . 2 1 8 7 6 Utility 13 | . . . . 1 1 2 5 4 Weapon 7 | . . . . . 2 1 2 2 Highest Loss Streak 14 | . . . . 3 2 4 9 14 To Critical Strikes . | . . . . . . . . . Average Slot Usage (%) 89 | . 100 100 100 97 85 80 87 81 Engine 10 | . 14 14 14 13 9 7 11 10 Core 1 | . . . . . . 5 1 . Treads 3 | . . . . 26 15 1 . . Leg 19 | . 28 28 28 . 10 20 18 . Wheel 1 | . . . . . 3 2 2 . Flight 2 | . . . . . . . 6 28 Device 7 | . 14 14 14 . 8 3 4 . Storage 16 | . 14 14 14 27 18 15 17 22 Processor 1 | . . . . . . . 3 5 Protection 4 | . . . . . 4 10 4 . Energy Gun 8 | . 14 14 14 14 7 2 5 4 Ballistic Gun 5 | . 14 14 14 14 4 . . . Impact Weapon 1 | . . . . . 4 3 . . Slashing Weapon 2 | . . . . . . 3 4 7 Naked Turns . | . . . . . . . . . Heaviest Build 58 | 15 17 17 32 34 41 56 58 53 Greatest Support 60 | 20 20 20 20 40 60 55 50 25 Greatest Overweight (x) 16 | 1 . . 1 . 3 16 13 6 Average Overweight (x) 1 | . . . . . . 2 1 2 Largest Inventory Capacity 15 | 8 8 8 15 15 15 15 15 15 Average Capacity 13 | 7 8 8 13 15 15 15 15 13 Most Carried 15 | 6 8 8 9 9 14 15 15 9 Average Carried 10 | 5 7 8 8 7 11 13 12 7 Final Capacity 15 | 8 8 8 15 15 15 15 15 5 Final Carried 13 | 6 8 8 9 8 13 13 10 4 Class Distribution -------------------- 64% | Mutant 35% | Scavenger-Mutant Dominant Class ---------------- Mutant | -10/Materials Mutant | -10/Mines Mutant | -10/Exiles Mutant | -9/Mines Mutant | -8/Materials Scavenger-Mutant | -7/Factory Scavenger-Mutant | -7/Storage Mutant | -6/Factory Resources | -11 -10 -10 -10 -9 -8 -7 -7 -6 ----------- Run | Yrd Mat Min Exi Min Mat Fac Sto Fac Matter Collected 1436 | 254 . 29 10 97 164 312 566 4 Remotely . | . . . . . . . . . Salvage Created 2828 | 28 . . . 100 291 680 1614 115 Parts 131 | 4 . . . 4 10 35 71 7 Haulers Intercepted . | . . . . . . . . . Recyclers Shooed 2 | . . . . 1 . 1 . . Parts Field Recycled . | . . . . . . . . . Retrieved Matter . | . . . . . . . . . Parts Self-Destructed . | . . . . . . . . . Prevented . | . . . . . . . . . Kills | -11 -10 -10 -10 -9 -8 -7 -7 -6 ------- Run | Yrd Mat Min Exi Min Mat Fac Sto Fac Combat Hostiles Destroyed 58 | . . . . 2 8 16 28 4 Melee 25 | . . . . . 2 10 9 4 Guns 8 | . . . . 2 3 1 2 . Cannons 5 | . . . . . . . 5 . AOE 17 | . . . . . 2 3 12 . Classes Destroyed 15 | 1 . . . 2 3 5 4 . Worker 8 | . . . . . . 2 6 . Builder 1 | . . . . . . . 1 . Tunneler 1 | 1 . . . . . . . . Recycler 4 | . . . . . . . 4 . Mechanic 1 | . . . . . 1 . . . Operator 1 | . . . . . . 1 . . Watcher 1 | . . . . . . . 1 . Swarmer 9 | . . . . . . 7 . 2 Grunt 24 | . . . . 1 4 4 15 . Brawler 4 | . . . . . 1 . 3 . Duelist 4 | . . . . 1 1 . 2 . Protector 2 | . . . . . . . 2 . Sentry 7 | . . . . . 2 2 3 . Hunter 5 | . . . . . . 1 2 2 Programmer 3 | . . . . . . 2 1 . Thug 2 | . . . . . . . 2 . Best Kill Streak 18 | 1 . . . 2 4 4 18 4 Combat Bots Only 14 | . . . . 2 3 4 14 4 Max Kills in Single Turn 6 | 1 . . . 1 2 2 6 1 Gunslinging . | . . . . . . . . . Exploded 4 | . . . . . 1 2 4 . Melee 1 | . . . . . 1 1 1 1 Uniques/NPCs Destroyed . | . . . . . . . . . Combat | -11 -10 -10 -10 -9 -8 -7 -7 -6 -------- Run | Yrd Mat Min Exi Min Mat Fac Sto Fac Hostile Shots Fired 681 | . . 5 . 29 64 197 217 169 Missed 178 | . . . . 4 16 55 73 30 Damage Taken 6824 | . . 194 . 429 1001 1284 1840 2076 Core 1709 | . . 35 . 142 171 163 339 859 Absorbed by Shields 356 | . . . . . . 235 121 . Core Remaining (%) 56 | 100 . . . 29 68 . 28 . Volleys Fired 75 | 1 . . . 14 19 7 28 6 Largest 2 | 2 . . . 2 2 2 2 1 Hottest 106 | 70 . . . 70 70 106 105 30 Shots Fired 121 | 2 . . . 28 30 11 44 6 Gun 75 | 2 . . . 28 25 9 11 . Cannon 27 | . . . . . . . 22 5 Launcher 18 | . . . . . 5 2 11 . Special 1 | . . . . . . . . 1 Kinetic 26 | 1 . . . 14 11 . . . Thermal 67 | 1 . . . 14 13 4 30 5 Explosive 18 | . . . . . 5 2 11 . Electromagnetic 9 | . . . . . 1 5 3 . Robot Hit Streak 14 | 2 . . . 5 14 8 12 2 Robot Miss Streak 3 | . . . . 3 2 1 2 3 Penetration Max . | . . . . . . . . . Secondary Targets 2 | . . . . 1 1 . . . Max Gunslinging Chain 1 | . . . . 1 1 . . . Shots Hit Robots 174 | 2 . . . 18 34 39 69 12 Core Hits 132 | 1 . . . 6 19 19 83 4 Critical Kills 2 | . . . . . 1 1 . . Critical Parts Destroyed 8 | . . . . . 4 4 . . Critical Strikes 20 | 1 . . . . 8 7 3 1 Burn 4 | 1 . . . . 3 . . . Destroy 1 | . . . . . 1 . . . Smash 10 | . . . . . 4 6 . . Sever 5 | . . . . . . 1 3 1 Melee Attacks 109 | . . . . . 17 38 39 15 Impact 31 | . . . . . 16 15 . . Slashing 78 | . . . . . 1 23 39 15 Piercing . | . . . . . . . . . Sneak Attacks 11 | . . . . . . 3 8 . Combat Hostiles . | . . . . . . . . . Follow-up Attacks 1 | . . . . . . . . 1 Damage Inflicted 8007 | 24 . . . 225 1065 1827 4524 342 Guns 828 | 24 . . . 225 249 133 197 . Cannons 628 | . . . . . . . 575 53 Explosions 2939 | . . . . . 359 190 2390 . Melee 3612 | . . . . . 457 1504 1362 289 Ramming . | . . . . . . . . . Kinetic 222 | 11 . . . 112 99 . . . Thermal 1142 | 13 . . . 113 150 59 754 53 Explosive 2939 | . . . . . 359 190 2390 . Electromagnetic 92 | . . . . . . 74 18 . Impact 889 | . . . . . 457 432 . . Slashing 2723 | . . . . . . 1072 1362 289 Piercing . | . . . . . . . . . Highest Corruption 15 | . . . . . . 5 15 . Average Corruption 6 | . . . . . . 3 8 . Corruption Purged . | . . . . . . . . . Corruption Blocked . | . . . . . . . . . Effects 50 | . . . . . . 16 34 . Message Errors 10 | . . . . . . 3 7 . Matter Fused 11 | . . . . . . 2 9 . Heat Flow Errors 8 | . . . . . . 2 6 . Energy Discharges 5 | . . . . . . 4 1 . Parts Rejected 3 | . . . . . . 1 2 . Parts Fused 2 | . . . . . . 1 1 . Data Loss (minor) 6 | . . . . . . 2 4 . Data Loss (major) 2 | . . . . . . 1 1 . Alerts 1 | . . . . . . . 1 . Weapon Failures 2 | . . . . . . . 2 . Overload Shots . | . . . . . . . . . Overflow Damage 759 | . . . . . 121 394 244 . Projectiles 7 | . . . . . . . 7 . Explosions 80 | . . . . . . 21 59 . Melee 672 | . . . . . 121 373 178 . Knockbacks 1 | . . . . . 1 . . . Impact 1 | . . . . . 1 . . . Kinetic . | . . . . . . . . . Secondary . | . . . . . . . . . Self-Inflicted Damage 220 | . . . . . 28 . 192 . Shots 7 | . . . . . 1 . 6 . Rammed . | . . . . . . . . . Targets Rammed . | . . . . . . . . . Kicked . | . . . . . . . . . Crushed . | . . . . . . . . . Highest Temperature 422 | 9 . . . 132 55 422 226 . Average Temperature 83 | 6 . . . 45 21 143 72 . Received Heat Transfer 1354 | . . . . 108 417 248 569 12 Effects 2 | . . . . . . 2 . . Shutdowns 1 | . . . . . . 1 . . Energy Bleed 1 | . . . . . . 1 . . Siege Activations . | . . . . . . . . . Robots Corrupted . | . . . . . . . . . Combat Hostiles . | . . . . . . . . . Parts Fried 1 | . . . . . 1 . . . Impact Corruptions 8 | . . . . . 4 4 . . Robots Melted . | . . . . . . . . . Combat Hostiles . | . . . . . . . . . Parts Melted 4 | . . . . 2 1 . . 1 Heat Transferred 2203 | 111 . . . 333 666 148 871 74 Parts Sabotaged . | . . . . . . . . . Parts Stolen . | . . . . . . . . . Parts Stripped . | . . . . . . . . . Power Chain Reactions . | . . . . . . . . . Alert | -11 -10 -10 -10 -9 -8 -7 -7 -6 ------- Run | Yrd Mat Min Exi Min Mat Fac Sto Fac Peak Influence 498 | 5 3 . . 56 209 171 498 207 Initial 207 | . 3 . . . 21 26 77 207 Average 115 | . 3 . . 49 89 78 200 201 Maximum Alert Level 2 | . . . . . 1 . 2 1 Low Security (%) 83 | 100 100 100 . 100 87 100 67 24 Level 1 8 | . . . . . 12 . 7 75 Level 2 7 | . . . . . . . 25 . Level 3 . | . . . . . . . . . Level 4 . | . . . . . . . . . Level 5 . | . . . . . . . . . High Security . | . . . . . . . . . Max Security . | . . . . . . . . . Squads Dispatched 14 | . 1 . . . . 4 8 1 Investigation 1 | . . . . . . . . 1 Extermination 3 | . . . . . . 2 1 . Reinforcement 6 | . 1 . . . . 2 3 . Assault 2 | . . . . . . . 2 . Garrison 2 | . . . . . . . 2 . Intercept . | . . . . . . . . . Searches Triggered . | . . . . . . . . . Construction Impeded 1 | . . . . . . . 1 . Haulers Reinforced . | . . . . . . . . . Active Scanning Responses . | . . . . . . . . . Cargo Convoy Interrupts . | . . . . . . . . . Stealth | -11 -10 -10 -10 -9 -8 -7 -7 -6 --------- Run | Yrd Mat Min Exi Min Mat Fac Sto Fac Distress Signals 3 | . . . . . . 1 2 . Communications Jammed . | . . . . . . . . . Distress Signals . | . . . . . . . . . Times Spotted 90 | . . 5 . 2 12 24 40 7 Peak Tracking Total 13 | . . 2 . 2 3 5 13 6 Tactical Retreats 1 | . . . . . . 1 . . Traps | -11 -10 -10 -10 -9 -8 -7 -7 -6 ------- Run | Yrd Mat Min Exi Min Mat Fac Sto Fac Traps Triggered . | . . . . . . . . . Indirectly . | . . . . . . . . . Trap Hack Attempts . | . . . . . . . . . Triggered . | . . . . . . . . . Disarmed 1 | . . . . . . 1 . . Reprogrammed . | . . . . . . . . . Reused . | . . . . . . . . . Traps Extracted . | . . . . . . . . . Installed . | . . . . . . . . . Triggered . | . . . . . . . . . Machines | -11 -10 -10 -10 -9 -8 -7 -7 -6 ---------- Run | Yrd Mat Min Exi Min Mat Fac Sto Fac Machines Disabled 2 | . . . . . . 1 . 1 Max in Single Turn 1 | . . . . . . 1 . 1 Garrison Access 1 | . . . . . . 1 . . Machines Repaired . | . . . . . . . . . Machines Dismantled . | . . . . . . . . . Machines Sabotaged . | . . . . . . . . . Overloaded Fab Kills . | . . . . . . . . . Hacking | -11 -10 -10 -10 -9 -8 -7 -7 -6 --------- Run | Yrd Mat Min Exi Min Mat Fac Sto Fac Machines Accessed 18 | . . . 4 1 1 5 5 2 Terminals 9 | . . . . 1 . 3 4 1 Fabricators 1 | . . . . . . 1 . . Repair Stations 1 | . . . . . . . . 1 Recycling Units . | . . . . . . . . . Scanalyzers 1 | . . . . . 1 . . . Garrison Access 2 | . . . . . . 1 1 . Total Hacks 82 | . . . 49 2 4 13 9 5 Successful 67 | . . . 49 2 4 9 2 1 Failed 15 | . . . . . . 4 7 4 Catastrophic 4 | . . . . . . 2 1 1 Database Lockouts . | . . . . . . . . . Manual 7 | . . . . 2 . 3 . 2 Terminals 20 | . . . . 2 . 9 7 2 Fabricators 2 | . . . . . . 2 . . Repair Stations 3 | . . . . . . . . 3 Recycling Units . | . . . . . . . . . Scanalyzers 4 | . . . . . 4 . . . Garrison Access 4 | . . . . . . 2 2 . Terminal Hacks 55 | . . . 49 1 . 3 2 . Record 49 | . . . 49 . . . . . Open Door 2 | . . . . . . . 2 . Terminal Index 2 | . . . . 1 . 1 . . Locate Traps 1 | . . . . . . 1 . . Disarm Traps 1 | . . . . . . 1 . . Fabricator Hacks 2 | . . . . . . 2 . . Network Status 1 | . . . . . . 1 . . Load Schematic 1 | . . . . . . 1 . . Repair Station Hacks 1 | . . . . . . . . 1 Scan Component 1 | . . . . . . . . 1 Recycling Unit Hacks . | . . . . . . . . . Scanalyzer 4 | . . . . . 4 . . . Insert Component 2 | . . . . . 2 . . . Analyze 2 | . . . . . 2 . . . Garrison Access Hacks 1 | . . . . . . 1 . . Seal Access 1 | . . . . . . 1 . . Unauthorized Hacks 4 | . . . . 1 . 3 . . Terminals 4 | . . . . 1 . 3 . . Botnet 4 | . . . . 1 . 3 . . Fabricators . | . . . . . . . . . Repair Stations . | . . . . . . . . . Recycling Units . | . . . . . . . . . Scanalyzers . | . . . . . . . . . Garrison Access . | . . . . . . . . . Data Cores Recovered . | . . . . . . . . . Used . | . . . . . . . . . Hacking Detections 7 | . . . . . . 3 2 2 Full Trace Events 1 | . . . . . . . . 1 Feedback Events . | . . . . . . . . . Feedback Blocked . | . . . . . . . . . Robot Schematics Acquired . | . . . . . . . . . Robots Built . | . . . . . . . . . Authchips . | . . . . . . . . . Time . | . . . . . . . . . Total Robot Build Rating . | . . . . . . . . . Part Schematics Acquired 2 | . . . . . 2 . . . Parts Built . | . . . . . . . . . Authchips . | . . . . . . . . . Time . | . . . . . . . . . Total Part Build Rating . | . . . . . . . . . Parts Repaired . | . . . . . . . . . Time . | . . . . . . . . . Parts Recycled . | . . . . . . . . . Recycled Matter . | . . . . . . . . . Retrieved Matter . | . . . . . . . . . Retrieved Components . | . . . . . . . . . Parts Scanalyzed 2 | . . . . . 2 . . . Part Schematics Acquired 2 | . . . . . 2 . . . Parts Damaged . | . . . . . . . . . Bothacking | -11 -10 -10 -10 -9 -8 -7 -7 -6 ------------ Run | Yrd Mat Min Exi Min Mat Fac Sto Fac Used RIF Installer . | . . . . . . . . . Robots Hacked 1 | . . . . . . . . 1 Non-combat . | . . . . . . . . . Combat 1 | . . . . . . . . 1 Robot Hacks Applied 1 | . . . . . . . . 1 parse_system 1 | . . . . . . . . 1 Relay Couplers Released . | . . . . . . . . . Fabnet Peak Effective % . | . . . . . . . . . Robots Rewired . | . . . . . . . . . Allies Hacked . | . . . . . . . . . Hacks Repelled . | . . . . . . . . . Allies | -11 -10 -10 -10 -9 -8 -7 -7 -6 -------- Run | Yrd Mat Min Exi Min Mat Fac Sto Fac Total Allies 2 | . . . . . . . 2 . Largest Group 2 | . . . . . . . 2 . Highest-Rated Group 62 | . . . . . . . 62 . Highest-Rated Ally 31 | . . . . . . . 31 . Total Orders . | . . . . . . . . . Ally Attacks 11 | . . . . . . . 11 . Total Damage 105 | . . . . . . . 105 . Kills . | . . . . . . . . . Allies Corrupted . | . . . . . . . . . Allies Melted . | . . . . . . . . . Intel | -11 -10 -10 -10 -9 -8 -7 -7 -6 ------- Run | Yrd Mat Min Exi Min Mat Fac Sto Fac Robot Analysis Total . | . . . . . . . . . Derelict Logs Recovered 2 | . . 1 . 1 . . . . Drone Launches . | . . . . . . . . . Drone Recoveries . | . . . . . . . . . Exploration | -11 -10 -10 -10 -9 -8 -7 -7 -6 ------------- Run | Yrd Mat Min Exi Min Mat Fac Sto Fac Turns Passed 5052 | 82 136 120 1343 303 500 1195 1126 247 Spaces Moved 2585 | 56 110 99 820 157 233 508 491 111 Core 23 | 10 . . . . . 12 1 . Treads 310 | . . . . 157 152 1 . . Legs 1778 | 46 110 99 820 . 81 296 326 . Wheels 256 | . . . . . . 199 57 . Hover 8 | . . . . . . . 8 . Flight 210 | . . . . . . . 99 111 Fastest Speed 50 | 50 120 120 120 160 120 120 98 88 Average Speed 163 | 113 120 120 163 160 151 187 173 154 Slowest Speed 850 | 190 120 120 190 160 330 850 700 445 Overloaded Moves . | . . . . . . . . . Propulsion Burnouts . | . . . . . . . . . Robots Hopped . | . . . . . . . . . Cave-ins Triggered . | . . . . . . . . . Exploration Rate (%) 32 | 4 29 28 92 36 24 11 60 4 Regions Visited 8 Branch Regions 4 Pre-discovered Areas 3 | . . 1 1 . . . 1 . Known Exits Taken . | . . . . . . . . . Unknown Exits Taken 8 | 1 1 1 1 1 1 1 1 . Scrap Searched . | . . . . . . . . . Spaces Dug 1 | . . . . . . 1 . . Terrain Destroyed 159 | . . . . . 21 6 130 2 Melee 1 | . . . . . . 1 . . Projectile 2 | . . . . . . . . 2 AOE 156 | . . . . . 21 5 130 . Terrain Rammed . | . . . . . . . . . Walls Destroyed . | . . . . . . . . . Machines Disabled . | . . . . . . . . . Actions | -11 -10 -10 -10 -9 -8 -7 -7 -6 --------- Run | Yrd Mat Min Exi Min Mat Fac Sto Fac Total 3082 | 69 115 100 822 181 311 669 657 158 Wait 118 | . . 2 . . 17 59 23 17 Move 2577 | 55 109 98 819 156 232 507 490 111 Hop . | . . . . . . . . . Pick Up 52 | 6 3 . 1 4 9 14 14 1 Fast Attach 42 | 7 . . . . 3 10 21 1 Attach 38 | . . . . 5 6 9 12 6 Detach 5 | . . . . . . 2 3 . Swap 30 | . 1 . 1 1 9 7 9 2 Drop 38 | . 2 . 1 1 . 16 18 . Fire 75 | 1 . . . 14 19 7 28 6 Melee 107 | . . . . . 16 38 39 14 Ram . | . . . . . . . . . Kick . | . . . . . . . . . Crush . | . . . . . . . . . Escape Stasis . | . . . . . . . . . Rewire . | . . . . . . . . . Trap . | . . . . . . . . . Miscellaneous . | . . . . . . . . . Route ------- -11/Scrapyard -10/Materials -10/Mines (discovered 2 exits: [*Mat] / *Exi) -10/Exiles (discovered 2 exits: *Min x2) -9/Mines -8/Materials -7/Factory -7/Storage -6/Factory History --------- Turn | Location | Event 16 | -11/Scrapyard | Discovered new exit (range 16) 83 | -11/Scrapyard | Entered Materials 191 | -10/Materials | Discovered new exit (range 13) 196 | -10/Materials | Met 8R-AWN 219 | -10/Materials | Entered Mines 221 | -10/Mines | Followed 8R-AWN into the Mines 234 | -10/Mines | Discovered new exit (range 12) 305 | -10/Mines | Build established: Mutant 308 | -10/Mines | Assembled infested the area 334 | -10/Mines | Discovered new exit (range 5) 339 | -10/Mines | Entered Exiles 372 | -10/Exiles | Welcomed by 8R-AWN 390 | -10/Exiles | Met EX-HEX 431 | -10/Exiles | Met EX-BIN 573 | -10/Exiles | Met EX-DEC 648 | -10/Exiles | Learned location of Zion (-6) 786 | -10/Exiles | Discovered new exit (range 10) 918 | -10/Exiles | Visited The Gauntlet 1268 | -10/Exiles | Learned about 8R-AWN's background 1323 | -10/Exiles | Discovered new exit (range 14) 1682 | -10/Exiles | Entered Mines 1691 | -9/Mines | Met a Derelict bent on vengeance 1700 | -9/Mines | Core integrity fell below 50% 1728 | -9/Mines | Lost 3 parts (2n1u) 1905 | -9/Mines | Discovered new exit (range 7) 1910 | -9/Mines | Learned Materials interactive machine intel 1985 | -9/Mines | Entered Materials 1985 | -8/Materials | Evolved 4 slots: Propulsion x2, Utility x2 1986 | -8/Materials | Loaded intel: 19 interactive machine locations 2441 | -8/Materials | Discovered new exit (range 9) 2485 | -8/Materials | Entered Factory 2485 | -7/Factory | Evolved 2 slots: Power x1, Utility x1 2646 | -7/Factory | Build established: Scavenger-Mutant 2970 | -7/Factory | Lost 4 parts (1p3n) 3648 | -7/Factory | Discovered new exit (range 11) 3680 | -7/Factory | Entered Storage 4070 | -7/Storage | Learned location of Armory (-4) 4279 | -7/Storage | System corruption reached 10% 4400 | -7/Storage | Met a pair of Derelict thieves 4476 | -7/Storage | Core integrity fell below 50% 4505 | -7/Storage | Destroyed 14 combat bots 4549 | -7/Storage | Lost 9 parts (2p4n1u2w) 4644 | -7/Storage | Garrison activated, responded to threat 4746 | -7/Storage | Build established: Mutant 4763 | -7/Storage | Discovered new exit (range 8) 4806 | -7/Storage | Entered Factory 4806 | -6/Factory | Evolved 2 slots: Propulsion x1, Utility x1 5013 | -6/Factory | Core integrity fell below 50% 5030 | -6/Factory | Core integrity fell below 20% 5053 | -6/Factory | Destroyed by H-66 Slayer with Gauss Rifle Last Messages --------------- 05040_ Slug penetrates Wall. 05040_ R-10 Processor collects Gauss Rifle. 05041_ U-05 Engineer builds a Wall. 05041_ U-05 Engineer lays Concrete. 05043_ Slug penetrates Wall. 05044_ U-05 Engineer lays Concrete. 05045_ R-10 Processor collects Flexi-carbon Leg. 05046_ U-05 Engineer builds a Wall. 05046_ Slug penetrates Wall. 05046_ Chainsword destroyed. 05046_ Slug penetrates Wall. 05050_ Wall collapses. 05050_ Slug penetrates Wall. 05051_ U-05 Engineer lays Concrete. 05051_ Jacked S-27 Virus... >>parse_system Reading system data... 05051_ U-05 Engineer lays Concrete. 05053_ Penetrated by Slug. [Achievement: Just Browsing] Map ----- +----------------------------------------------------+ | | | | | | | | | | | ???????????????????################??????????????? | | ???????????????????# #??????????????? | | ???????????????????# #??????????????? | | ???????????????????# #??????????????? | | ???????????????????# ! #??????????????? | | ???????????????????# #??????????????? | | ???????????????????# #??????????????? | | ???????????????????########+####+#############???? | | ????????????????????????# #???? | | ????????????????????????# #???? | | ??????????############### #???? | | ??????????# ## #???? | | ??????????# + ##+########### #???? | | ??????????# ## ## #???# #???? | | ??????????# """ """" ## #; #???# #???? | | ??????????# """ """" # ! ; #???# #???? | | ??????????# """ """" # #= #####+##### | | ??????????# """" # " #% # | | ??????????# """" ; T ! + # """ """ | | ??????????# """" # [% %R# # "R """ | | ??????????# """" #s@ % ; h + """ """ | | ??????????# ?? # # " # "" """ | | ??????????# ????? ### ### # """ | | ???????????#??????######?# # " # """ | | ?????????????????????????# ##"""""#### """ | | ?????????????????????????# ########??# ! | | ?????????????????????????# #?????????# !! | | ????????????????????????? ?????????# | | ????????????????????????# #????????# | | ????????????????????????+ #????????########### | | ????????????????????????# #??????????????????? | | ????????????????????????# #??????????????????? | | ????????????????????????# #??????????????????? | | ????????????????????????# #??????????????????? | | ????????????????????????# #??????????????????? | | ????????????????????????# #??????????????????? | | ????????????????????????# +??????????????????? | | ????????????????????????# #??????????????????? | | ????????????????????????# #??????????????????? | | ???????????????????????? #??????????????????? | | ???????????????????????? #??????????????????? | | ???????????????????????? ??????????????????? | | ???????????????????????? ??????????????????? | | ???????????????????????? """??????????????????? | | ???????????????????????? ""???????????????????? | +----------------------------------------------------+ Best States ------------- Heat Dissipation 48 Energy Generation 31 Energy Capacity 820 Matter Stores 488 Matter Capacity 500 Sight Range 22 Robot Scan Range 15 Terrain Scan Density 10 Armor Coverage 300 Evasion (%) 55 Recoil Reduction 3 Item Schematics ----------------- Imp. Ion Engine | -8/Materials | Scanalyzed Katana | -8/Materials | Scanalyzed Robot Schematics ------------------ None Fabricated ------------ Nothing Alien Tech Used ----------------- None Achievements -------------- Just Browsing Challenges ------------ None Game ------ Seed SapperStormSpear Manual? 0 Play Time 00:53:40 Cumulative 26.6 hours Start 2024.04.16 @ 20:19:07 End 2024.04.16 @ 21:11:27 Sessions 2 Manual Loads 0 Difficulty Rogue Special Mode None Game No. 38 Rogue 38 Adventurer 0 Explorer 0 Win Type - Total 0 Types 0/0/0/0/0/0/0/0/0 Lore% 15 Gallery% 25 Achievement% 18 Wizard Run 0 Options --------- Layout 1 ASCII 0 Keyboard 0 Movement Mouse Keybinds 0 Fullscreen 1 Font 18/SmallcapsGlow Map View 54x44 Zoom Use 0% Tactical HUD 1 Map Filters NONE Filters NONE Steam 0 RUN: 8902577e-551b-467e-aaad-8e31bf15ebe5